fUSD/lending_fUSD_20250213
["ID","MTS","AMOUNT","RATE_DAILY","PERIOD"]
[352910620,1739416231716,-212.58776089,0.00015709,2]
[352910621,1739416231726,-150.0,0.00015787,2]
[352910622,1739416231736,-3915.0,0.00015787,2]
[352910623,1739416231747,-1008.0,0.00015787,2]
[352910624,1739416231758,-1003.37,0.00015848,2]
[352910625,1739416231768,-165.87,0.00015848,2]
[352910626,1739416231779,-23065.48586032,0.000159,2]
[352910627,1739416231789,-304.74891733,0.000159,2]
[352910628,1739416231799,-1000.0,0.0001593,2]
[352910629,1739416231811,-18769.11853036,0.00015956,2]
[352910630,1739416231824,-1500.0,0.00015956,2]
[352910631,1739416231837,-2796.36732996,0.00015956,2]
[352910632,1739416231848,-14398.07387218,0.00015956,2]
[352910633,1739416231869,-7891.18144295,0.00015956,2]
[352910634,1739416231881,-150.0,0.0001596,2]
[352910635,1739416231892,-150.0,0.00015961,2]
[352910636,1739416231902,-150.0,0.00015964,2]
[352910637,1739416231912,-163.81121235,0.00015973,2]
[352910638,1739416231923,-500.16904842,0.00015973,2]
[352910639,1739416231933,-500.0,0.00015973,2]
[352910641,1739416231943,-500.46697361,0.00015973,2]
[352910643,1739416231954,-150.0,0.00015976,2]
[352910645,1739416231963,-203.34229805,0.00015983,2]
[352910647,1739416231973,-150.0,0.00015987,2]
[352910649,1739416231982,-2131.0218808,0.00015989,2]
[352910651,1739416231992,-4942.5150748,0.00015989,2]
[352910653,1739416232001,-156.87508696,0.00015989,2]
[352910655,1739416232011,-215.77,0.0001599,2]
[352910657,1739416232021,-202.83846037,0.0001599,2]
[352910659,1739416232030,-70762.636467,0.0001599,2]
[352910661,1739416232042,-38655.2903951,0.0001599,2]
[352910663,1739416232052,-150.0,0.00015991,2]
[352910665,1739416232062,-150.0,0.00015993,2]
[352910667,1739416232073,-303.81203928,0.00015999,2]
[352910669,1739416232083,-304.94371259,0.00015999,2]
[352910671,1739416232094,-300.0,0.00015999,2]
[352910673,1739416232104,-300.0,0.00015999,2]
[352910675,1739416232114,-500.0,0.00015999,2]
[352910677,1739416232124,-999.0,0.00015999,2]
[352910679,1739416232134,-193.87024872,0.00015999,2]
[352910681,1739416232144,-1325.0,0.00016,2]
[352910683,1739416232154,-498.12,0.00016,2]
[352910685,1739416232165,-1670597.30542219,0.00016,2]
[352910688,1739416232177,-1771.80055567,0.00016,2]
[352910691,1739416232200,-75583.2472419,0.00016,2]
[352910694,1739416232216,-2813.24472267,0.00016,2]
[352910696,1739416232229,-1112.22,0.00016,2]
[352910698,1739416232242,-65078.54383745,0.00016,2]
[352910717,1739416237424,-63458.72962586,0.00016,2]
[352910718,1739416237435,-24868.81956741,0.00016,3]
[352910719,1739416237445,-900.0,0.00016,17]
[352910720,1739416237457,-2981.746429,0.00016,2]
[352910721,1739416237467,-500.0,0.00016,2]
[352910722,1739416237476,-2000.0,0.00016,2]
[352910723,1739416237487,-2000.0,0.00016,2]
[352910724,1739416237498,-2000.0,0.00016,2]
[352910725,1739416237509,-2000.0,0.00016,2]
[352910726,1739416237519,-2000.0,0.00016,2]
[352910727,1739416237529,-2000.0,0.00016,2]
[352910728,1739416237540,-2000.0,0.00016,2]
[352910729,1739416237552,-2000.0,0.00016,2]
[352910730,1739416237562,-2000.0,0.00016,2]
[352910731,1739416237572,-2000.0,0.00016,2]
[352910732,1739416237586,-2000.0,0.00016,2]
[352910733,1739416237597,-2757.70290625,0.00016,2]
[352910734,1739416237613,-357.65408908,0.00016,2]
[352910735,1739416237625,-200.0,0.00016,2]
[352910736,1739416237636,-150.0,0.00016,2]
[352910737,1739416237646,-150.0,0.00016,2]
[352910738,1739416237656,-150.0,0.00016,2]
[352910739,1739416237666,-150.0,0.00016,2]
[352910740,1739416237676,-5723.69048837,0.00016,2]
[352910741,1739416237686,-381.80311913,0.00016,2]
[352910742,1739416237695,-2751.91099614,0.00016,2]
[352910743,1739416237707,-44556.4764933,0.00016,2]
[352910744,1739416237716,-200.0,0.00016,4]
[352910745,1739416237726,-747.0,0.00016,2]
[352910746,1739416237736,-186.7199,0.00016,2]
[352910748,1739416237745,-231.0,0.00016,2]
[352910750,1739416237755,-595.9084,0.00016,2]
[352910751,1739416237764,-666.66666,0.00016,2]
[352910752,1739416237774,-367.0,0.00016,2]
[352910753,1739416237783,-1285.3942,0.00016,2]
[352910754,1739416237794,-150.0,0.00016,2]
[352910755,1739416237803,-300.0,0.0001601,2]
[352910756,1739416237813,-23065.48586032,0.00016011,2]
[352910757,1739416237822,-310.7868512,0.00016027,2]
[352910758,1739416237834,-203.34229805,0.00016067,2]
[352910760,1739416237844,-23065.48586032,0.00016067,2]
[352910761,1739416237855,-310.7868512,0.0001611,2]
[352910763,1739416237867,-500.0,0.00016111,2]
[352910765,1739416237877,-500.0,0.00016111,2]
[352910766,1739416237888,-150.0,0.00016111,2]
[352910767,1739416237899,-203.20503456,0.00016111,2]
[352910768,1739416237910,-23065.48586032,0.00016122,2]
[352910769,1739416237922,-500.0,0.00016136,2]
[352910770,1739416237932,-500.0,0.00016138,2]
[352910771,1739416237942,-500.0,0.00016138,2]
[352910772,1739416237952,-150.76613659,0.00016147,2]
[352910773,1739416237962,-203.34229805,0.0001615,2]
[352910774,1739416237972,-200.0,0.0001616,2]
[352910775,1739416237981,-310.7868512,0.00016164,2]
[352910776,1739416237990,-500.0,0.00016166,2]
[352910777,1739416238000,-500.0,0.00016166,2]
[352910778,1739416238010,-23065.48586032,0.00016178,2]
[352910779,1739416238020,-152.0,0.00016182,7]
[352910780,1739416238029,-500.0,0.00016193,2]
[352910781,1739416238039,-937.36887726,0.00016193,2]
[352910782,1739416238048,-1392.03866,0.000162,2]
[352910783,1739416238058,-225.33,0.00016213,2]
[352910784,1739416238067,-500.0,0.00016221,2]
[352910785,1739416238076,-203.34229805,0.00016233,2]
[352910786,1739416238086,-23065.48586032,0.00016233,2]
[352910787,1739416238097,-303.49264907,0.00016237,2]
[352910788,1739416238108,-151.0,0.00016238,2]
[352910789,1739416238117,-151.0,0.00016238,2]
[352910790,1739416238127,-151.0,0.00016238,2]
[352910791,1739416238139,-151.385022,0.00016238,2]
[352910792,1739416238149,-152.115484,0.00016238,2]
[352910793,1739416238158,-239.510163,0.00016238,2]
[352910794,1739416238169,-151.0,0.00016238,2]
[352910795,1739416238180,-151.0,0.00016238,2]
[352910796,1739416238192,-291.664321,0.00016238,2]
[352910797,1739416238204,-151.0,0.00016238,2]
[352910798,1739416238214,-151.0,0.00016238,2]
[352910799,1739416238223,-151.0,0.00016238,2]
[352910800,1739416238234,-233.351447,0.00016238,2]
[352910801,1739416238244,-233.351447,0.00016238,2]
[352910802,1739416238254,-151.0,0.00016238,2]
[352910803,1739416238263,-151.0,0.00016238,2]
[352910804,1739416238273,-318.389641,0.00016238,2]
[352910805,1739416238283,-318.389641,0.00016238,2]
[352910806,1739416238293,-310.7868512,0.00016247,2]
[352910807,1739416238302,-500.0,0.00016248,2]
[352910808,1739416238312,-500.0,0.00016273,2]
[352910809,1739416238321,-500.0,0.00016275,2]
[352910810,1739416238330,-23065.48586032,0.00016289,2]
[352910811,1739416238340,-130957.62505218,0.000163,2]
[352910812,1739416238353,-784.76608252,0.00016303,2]
[352910813,1739416238362,-203.34229805,0.00016317,2]
[352910814,1739416238371,-200.0,0.00016322,2]
[352910815,1739416238380,-113103.0,0.00016334,2]
[352910816,1739416238392,-238.16979806,0.0001634,2]
[352910817,1739416238401,-5800.0,0.00016341,2]
[352910818,1739416238410,-23065.48586032,0.00016344,2]
[352910819,1739416238419,-5800.0,0.00016349,2]
[352910820,1739416238431,-5800.0,0.00016358,2]
[352910821,1739416238441,-5800.0,0.00016366,2]
[352910822,1739416238452,-238.16979806,0.0001637,2]
[352910823,1739416238462,-5800.0,0.00016375,2]
[352910824,1739416238473,-167.75908228,0.0001638,2]
[352910825,1739416238483,-171.5057766,0.0001638,2]
[352910826,1739416238493,-5800.0,0.00016383,2]
[352910827,1739416238503,-152.0,0.00016384,8]
[352910828,1739416238513,-167.75908228,0.0001639,2]
[352910829,1739416238524,-171.50577658,0.0001639,2]
[352910830,1739416238533,-5800.0,0.00016392,2]
[352910831,1739416238543,-5800.0,0.00016392,2]
[352910832,1739416238553,-5800.0,0.000164,2]
[352910833,1739416238565,-583.95483194,0.000164,2]
[352910834,1739416238575,-5800.0,0.000164,2]
[352910835,1739416238585,-203.34229805,0.000164,2]
[352910836,1739416238595,-16343.21677472,0.000164,2]
[352910837,1739416238605,-304.74891733,0.000164,2]
[352910838,1739416238615,-23065.48586032,0.000164,2]
[352910839,1739416238624,-167.75908228,0.000164,2]
[352910840,1739416238634,-238.16979806,0.000164,2]
[352910841,1739416238644,-171.50577658,0.000164,2]
[352910842,1739416238654,-500.0,0.0001641,2]
[352910843,1739416238664,-228.048109,0.00016438,2]
[352910844,1739416238674,-179.945473,0.00016438,2]
[352910845,1739416238684,-151.0,0.00016438,2]
[352910846,1739416238693,-151.0,0.00016438,2]
[352910847,1739416238703,-160.25223,0.00016438,2]
[352910848,1739416238713,-151.0,0.00016438,2]
[352910849,1739416238723,-151.0,0.00016438,2]
[352910850,1739416238733,-151.0,0.00016438,2]
[352910851,1739416238743,-184.3728,0.00016438,2]
[352910852,1739416238753,-151.0,0.00016438,2]
[352910853,1739416238763,-151.0,0.00016438,2]
[352910854,1739416238773,-250.340081,0.00016438,2]
[352910855,1739416238783,-151.0,0.00016438,2]
[352910856,1739416238793,-151.0,0.00016438,2]
[352910857,1739416238803,-151.0,0.00016438,2]
[352910858,1739416238812,-151.0,0.00016438,2]
[352910859,1739416238822,-151.0,0.00016438,2]
[352910860,1739416238831,-151.0,0.00016438,2]
[352910861,1739416238842,-151.395094,0.00016438,2]
[352910862,1739416238852,-151.0,0.00016438,2]
[352910863,1739416238862,-151.0,0.00016438,2]
[352910864,1739416238872,-151.0,0.00016438,2]
[352910865,1739416239084,-151.0,0.00016438,2]
[352910866,1739416239095,-151.0,0.00016438,2]
[352910867,1739416239105,-151.0,0.00016438,2]
[352910868,1739416239115,-202.133744,0.00016438,2]
[352910869,1739416239126,-500.75010759,0.00016438,2]
[352910870,1739416239135,-500.0,0.00016438,2]
[352910871,1739416239147,-377.45375332,0.00016438,2]
[352910872,1739416239158,-500.56433318,0.00016438,2]
[352910873,1739416239168,-504.56402868,0.00016438,2]
[352910874,1739416239178,-500.0,0.00016438,2]
[352910875,1739416239188,-500.51919696,0.00016438,2]
[352910876,1739416239198,-233.351447,0.00016438,2]
[352910877,1739416239207,-233.351447,0.00016438,2]
[352910878,1739416239217,-233.351447,0.00016438,2]
[352910879,1739416239227,-233.351447,0.00016438,2]
[352910880,1739416239236,-233.351447,0.00016438,2]
[352910881,1739416239246,-233.351447,0.00016438,2]
[352910882,1739416239256,-500.0,0.00016438,2]
[352910883,1739416239266,-233.351447,0.00016438,2]
[352910884,1739416239276,-233.351447,0.00016438,2]
[352910885,1739416239286,-233.351447,0.00016438,2]
[352910886,1739416239296,-233.351447,0.00016438,2]
[352910887,1739416239306,-233.351447,0.00016438,2]
[352910888,1739416239316,-233.351447,0.00016438,2]
[352910889,1739416239326,-500.0,0.00016438,2]
[352910890,1739416239335,-500.0,0.00016438,2]
[352910891,1739416239348,-500.0,0.00016438,2]
[352910892,1739416239359,-500.0,0.00016438,2]
[352910893,1739416239375,-151.0,0.00016438,2]
[352910894,1739416239385,-151.0,0.00016438,2]
[352910895,1739416239395,-151.0,0.00016438,2]
[352910896,1739416239407,-151.0,0.00016438,2]
[352910897,1739416239417,-151.0,0.00016438,2]
[352910898,1739416239427,-151.0,0.00016438,2]
[352910899,1739416239438,-502.17783375,0.00016438,2]
[352910900,1739416239449,-500.0,0.00016438,2]
[352910901,1739416239460,-501.35357825,0.00016438,2]
[352910902,1739416239470,-329.00226511,0.00016438,2]
[352910903,1739416239480,-151.0,0.00016438,2]
[352910904,1739416239490,-151.0,0.00016438,2]
[352910905,1739416239500,-151.0,0.00016438,2]
[352910906,1739416239512,-500.0,0.00016438,2]
[352910907,1739416239522,-500.0,0.00016438,2]
[352910908,1739416239532,-151.0,0.00016438,2]
[352910909,1739416239542,-151.0,0.00016438,2]
[352910910,1739416239552,-151.0,0.00016438,2]
[352910911,1739416239561,-151.0,0.00016438,2]
[352910912,1739416239572,-151.0,0.00016438,2]
[352910913,1739416239582,-151.0,0.00016438,2]
[352910914,1739416239592,-179.165359,0.00016438,2]
[352910915,1739416239602,-500.0,0.00016438,2]
[352910916,1739416239612,-179.165359,0.00016438,2]
[352910917,1739416239621,-179.165359,0.00016438,2]
[352910918,1739416239631,-431.66661767,0.00016438,2]
[352910919,1739416239641,-500.69768678,0.00016438,2]
[352910920,1739416239651,-318.389641,0.00016438,2]
[352910921,1739416239661,-318.389641,0.00016438,2]
[352910922,1739416239671,-318.389641,0.00016438,2]
[352910923,1739416239681,-318.389641,0.00016438,2]
[352910924,1739416239690,-318.389641,0.00016438,2]
[352910925,1739416239700,-318.389641,0.00016438,2]
[352910926,1739416239711,-318.389641,0.00016438,2]
[352910927,1739416239721,-318.389641,0.00016438,2]
[352910928,1739416239731,-318.389641,0.00016438,2]
[352910929,1739416239742,-318.389641,0.00016438,2]
[352910930,1739416239752,-318.389641,0.00016438,2]
[352910931,1739416239764,-318.389641,0.00016438,2]
[352910932,1739416239775,-637.06186417,0.00016438,2]
[352910933,1739416239785,-151.0,0.00016438,2]
[352910934,1739416239796,-152.031553,0.00016438,2]
[352910935,1739416239807,-191.02118499,0.00016438,2]
[352910936,1739416239818,-199.1082983,0.00016438,2]
[352910937,1739416239828,-500.0,0.00016438,2]
[352910938,1739416239839,-150.0,0.00016438,2]
[352910939,1739416239849,-151.0,0.00016438,2]
[352910940,1739416239865,-500.0,0.00016438,2]
[352910941,1739416239876,-151.0,0.00016438,2]
[352910942,1739416239886,-501.11996796,0.00016438,2]
[352910943,1739416239897,-151.0,0.00016438,2]
[352910944,1739416239909,-151.0,0.00016438,2]
[352910945,1739416239920,-500.0,0.00016438,2]
[352910946,1739416239931,-151.0,0.00016438,2]
[352910947,1739416239941,-151.0,0.00016438,2]
[352910948,1739416239952,-500.0,0.00016438,2]
[352910949,1739416239963,-500.0,0.00016438,2]
[352910950,1739416239973,-504.72329836,0.00016438,2]
[352910951,1739416239983,-503.71701546,0.00016438,2]
[352910952,1739416239992,-500.0,0.00016438,2]
[352910953,1739416240002,-269.56316737,0.00016438,2]
[352910954,1739416240012,-501.90085122,0.00016438,2]
[352910955,1739416240037,-501.36906165,0.00016438,2]
[352910956,1739416240057,-504.5641805,0.00016438,2]
[352910957,1739416240080,-502.11637147,0.00016438,2]
[352910958,1739416240103,-506.29180934,0.00016438,2]
[352910959,1739416240121,-500.0,0.00016438,2]
[352910960,1739416240141,-151.0,0.00016438,2]
[352910961,1739416240161,-151.0,0.00016438,2]
[352910962,1739416240182,-151.0,0.00016438,2]
[352910963,1739416240203,-455.1174836,0.00016438,2]
[352910964,1739416240224,-500.72537632,0.00016438,2]
[352910965,1739416240246,-500.59793176,0.00016438,2]
[352910966,1739416240271,-151.0,0.00016438,2]
[352910967,1739416240285,-500.0,0.00016438,2]
[352910968,1739416240307,-151.0,0.00016438,2]
[352910969,1739416240325,-151.0,0.00016438,2]
[352910970,1739416240351,-502.97306693,0.00016438,2]
[352910971,1739416240365,-500.0,0.00016438,2]
[352910972,1739416240387,-500.0,0.00016438,2]
[352910973,1739416240409,-509.52390184,0.00016438,2]
[352910974,1739416240442,-500.0,0.00016438,2]
[352910975,1739416240463,-500.0,0.00016438,2]
[352910976,1739416240482,-500.0,0.00016438,2]
[352910977,1739416240501,-500.0,0.00016438,2]
[352910978,1739416240520,-500.0,0.00016438,2]
[352910979,1739416240540,-500.0,0.00016438,2]
[352910980,1739416240559,-269.61938826,0.00016438,2]
[352910981,1739416240577,-500.0,0.00016438,2]
[352910982,1739416240596,-503.82322878,0.00016438,2]
[352910983,1739416240615,-500.0,0.00016438,2]
[352910984,1739416240633,-500.0,0.00016438,2]
[352910985,1739416240651,-500.0,0.00016438,2]
[352910986,1739416240669,-1200.0,0.00016438,2]
[352910987,1739416240686,-500.0,0.00016438,2]
[352910988,1739416240705,-500.0,0.00016438,2]
[352910989,1739416240722,-500.0,0.00016438,2]
[352910990,1739416240739,-500.0,0.00016438,2]
[352910991,1739416240758,-500.0,0.00016438,2]
[352910992,1739416240776,-500.0,0.00016438,2]
[352910993,1739416240794,-500.0,0.00016438,2]
[352910994,1739416240812,-500.0,0.00016438,2]
[352910995,1739416240829,-500.0,0.00016438,2]
[352910996,1739416240847,-500.0,0.00016438,2]
[352910997,1739416240865,-500.0,0.00016438,2]
[352910998,1739416240883,-500.0,0.00016438,2]
[352910999,1739416240900,-420.66102088,0.00016438,2]
[352911000,1739416240940,-502.02589821,0.00016438,2]
[352911001,1739416240966,-500.0,0.00016438,2]
[352911002,1739416240989,-500.0,0.00016438,2]
[352911003,1739416241011,-709.39,0.00016438,2]
[352911004,1739416241034,-500.0,0.00016438,2]
[352911005,1739416241054,-300.0,0.00016438,2]
[352911006,1739416241074,-500.0,0.00016438,2]
[352911007,1739416241094,-500.0,0.00016438,2]
[352911008,1739416241114,-500.0,0.00016438,2]
[352911009,1739416241133,-500.0,0.00016438,2]
[352911010,1739416241152,-502.47240196,0.00016438,2]
[352911011,1739416241170,-290.33994083,0.00016438,2]
[352911012,1739416242132,-297.33088944,0.00016438,2]
[352911013,1739416242144,-758.66,0.00016438,2]
[352911014,1739416242156,-613.46,0.00016438,2]
[352911015,1739416242166,-500.0,0.00016438,2]
[352911016,1739416242177,-151.0,0.00016438,2]
[352911017,1739416242188,-151.0,0.00016438,2]
[352911018,1739416242197,-500.0,0.00016438,2]
[352911019,1739416242208,-500.0,0.00016438,2]
[352911020,1739416242217,-151.0,0.00016438,2]
[352911021,1739416242230,-151.0,0.00016438,2]
[352911023,1739416242240,-500.0,0.00016438,2]
[352911025,1739416242251,-500.0,0.00016438,2]
[352911026,1739416242261,-500.0,0.00016438,2]
[352911027,1739416242270,-500.0,0.00016438,2]
[352911028,1739416242279,-500.0,0.00016438,2]
[352911029,1739416242289,-500.0,0.00016438,2]
[352911030,1739416242298,-500.0,0.00016438,2]
[352911031,1739416242307,-750.36,0.00016438,2]
[352911032,1739416242317,-500.0,0.00016438,2]
[352911033,1739416242327,-500.0,0.00016438,2]
[352911034,1739416242337,-500.0,0.00016438,2]
[352911035,1739416242348,-500.0,0.00016438,2]
[352911036,1739416242362,-500.0,0.00016438,2]
[352911037,1739416242372,-472.47053147,0.00016438,2]
[352911038,1739416242381,-500.0,0.00016438,2]
[352911039,1739416242392,-1049.13,0.00016438,2]
[352911040,1739416242402,-583.71594494,0.00016438,2]
[352911041,1739416242411,-500.0,0.00016438,2]
[352911042,1739416242421,-500.0,0.00016438,2]
[352911043,1739416242433,-500.0,0.00016438,2]
[352911044,1739416242445,-500.0,0.00016438,2]
[352911045,1739416242456,-500.0,0.00016438,2]
[352911046,1739416242466,-500.0,0.00016438,2]
[352911047,1739416242476,-500.0,0.00016438,2]
[352911049,1739416242486,-500.0,0.00016438,2]
[352911051,1739416242495,-504.70023944,0.00016438,2]
[352911053,1739416242505,-500.0,0.00016438,2]
[352911055,1739416242514,-500.0,0.00016438,2]
[352911056,1739416242524,-501.04444578,0.00016438,2]
[352911057,1739416242533,-500.0,0.00016438,2]
[352911058,1739416242543,-500.0,0.00016438,2]
[352911059,1739416242552,-500.0,0.00016438,2]
[352911060,1739416242562,-715.06,0.00016438,2]
[352911061,1739416242572,-500.0,0.00016438,2]
[352911062,1739416242582,-858.87,0.00016438,2]
[352911063,1739416242591,-500.0,0.00016438,2]
[352911064,1739416242601,-500.0,0.00016438,2]
[352911065,1739416242613,-500.0,0.00016438,2]
[352911066,1739416242623,-500.0,0.00016438,2]
[352911067,1739416242634,-500.0,0.00016438,2]
[352911068,1739416242643,-502.5945126,0.00016438,2]
[352911069,1739416242652,-621.61708068,0.00016438,2]
[352911070,1739416242662,-203.369371,0.00016438,2]
[352911071,1739416242672,-203.369371,0.00016438,2]
[352911072,1739416242683,-203.369371,0.00016438,2]
[352911073,1739416242693,-500.0,0.00016438,2]
[352911074,1739416242703,-500.0,0.00016438,2]
[352911075,1739416242713,-500.0,0.00016438,2]
[352911076,1739416242723,-500.0,0.00016438,2]
[352911077,1739416242733,-579.08476905,0.00016438,2]
[352911078,1739416242743,-203.369371,0.00016438,2]
[352911079,1739416242753,-203.369371,0.00016438,2]
[352911080,1739416242764,-203.369371,0.00016438,2]
[352911081,1739416242775,-500.0,0.00016438,2]
[352911082,1739416242784,-500.0,0.00016438,2]
[352911083,1739416242794,-500.0,0.00016438,2]
[352911084,1739416242805,-500.0,0.00016438,2]
[352911085,1739416242816,-500.0,0.00016438,2]
[352911086,1739416242826,-500.93105447,0.00016438,2]
[352911087,1739416242836,-151.0,0.00016438,2]
[352911088,1739416242846,-500.0,0.00016438,2]
[352911089,1739416242857,-151.0,0.00016438,2]
[352911090,1739416242867,-500.0,0.00016438,2]
[352911091,1739416242877,-500.0,0.00016438,2]
[352911092,1739416242886,-500.0,0.00016438,2]
[352911093,1739416242896,-166.716184,0.00016438,2]
[352911094,1739416242908,-500.0,0.00016438,2]
[352911095,1739416242919,-166.716184,0.00016438,2]
[352911096,1739416242929,-506.98019115,0.00016438,2]
[352911097,1739416242939,-531.63,0.00016438,2]
[352911098,1739416242950,-500.0,0.00016438,2]
[352911100,1739416242960,-166.716184,0.00016438,2]
[352911101,1739416242969,-151.0,0.00016438,2]
[352911103,1739416242978,-151.0,0.00016438,2]
[352911106,1739416242988,-500.0,0.00016438,2]
[352911107,1739416242998,-500.0,0.00016438,2]
[352911109,1739416243008,-166.716184,0.00016438,2]
[352911111,1739416243018,-166.716184,0.00016438,2]
[352911113,1739416243028,-500.0,0.00016438,2]
[352911115,1739416243038,-340.15556,0.00016438,2]
[352911116,1739416243051,-166.716184,0.00016438,2]
[352911117,1739416243062,-500.0,0.00016438,2]
[352911118,1739416243072,-340.15556,0.00016438,2]
[352911119,1739416243084,-500.0,0.00016438,2]
[352911120,1739416243096,-340.15556,0.00016438,2]
[352911121,1739416243107,-500.0,0.00016438,2]
[352911122,1739416243119,-500.0,0.00016438,2]
[352911123,1739416243130,-500.0,0.00016438,2]
[352911124,1739416243142,-340.15556,0.00016438,2]
[352911125,1739416243154,-500.0,0.00016438,2]
[352911126,1739416243166,-340.15556,0.00016438,2]
[352911127,1739416243176,-340.15556,0.00016438,2]
[352911128,1739416243188,-500.0,0.00016438,2]
[352911129,1739416243199,-351.78378852,0.00016438,2]
[352911130,1739416243209,-500.0,0.00016438,2]
[352911131,1739416243219,-500.0,0.00016438,2]
[352911132,1739416243229,-500.0,0.00016438,2]
[352911133,1739416243239,-500.0,0.00016438,2]
[352911134,1739416243250,-968.7,0.00016438,2]
[352911135,1739416243260,-500.0,0.00016438,2]
[352911136,1739416243270,-500.0,0.00016438,2]
[352911137,1739416243280,-500.30743443,0.00016438,2]
[352911138,1739416243291,-500.0,0.00016438,2]
[352911139,1739416243301,-500.0,0.00016438,2]
[352911140,1739416243311,-500.0,0.00016438,2]
[352911141,1739416243320,-500.0,0.00016438,2]
[352911142,1739416243329,-500.0,0.00016438,2]
[352911143,1739416243339,-500.0,0.00016438,2]
[352911144,1739416243354,-500.0,0.00016438,2]
[352911145,1739416243363,-500.0,0.00016438,2]
[352911146,1739416243374,-1159.94,0.00016438,2]
[352911147,1739416243383,-500.0,0.00016438,2]
[352911148,1739416243395,-500.0,0.00016438,2]
[352911149,1739416243405,-865.33,0.00016438,2]
[352911150,1739416243415,-500.0,0.00016438,2]
[352911151,1739416243428,-500.0,0.00016438,2]
[352911152,1739416243437,-500.0,0.00016438,2]
[352911153,1739416243447,-500.0,0.00016438,2]
[352911154,1739416243456,-631.73,0.00016438,2]
[352911155,1739416243468,-500.0,0.00016438,2]
[352911156,1739416243478,-500.0,0.00016438,2]
[352911157,1739416243491,-500.0,0.00016438,2]
[352911158,1739416243501,-500.0,0.00016438,2]
[352911159,1739416243510,-500.0,0.00016438,2]
[352911160,1739416243520,-500.0,0.00016438,2]
[352911161,1739416243529,-500.0,0.00016438,2]
[352911162,1739416243539,-500.0,0.00016438,2]
[352911163,1739416243550,-500.0,0.00016438,2]
[352911164,1739416243559,-500.0,0.00016438,2]
[352911165,1739416243569,-500.0,0.00016438,2]
[352911166,1739416243579,-511.32,0.00016438,2]
[352911167,1739416243588,-500.0,0.00016438,2]
[352911168,1739416243598,-500.0,0.00016438,2]
[352911169,1739416243609,-500.0,0.00016438,2]
[352911170,1739416243621,-1150.39,0.00016438,2]
[352911171,1739416243631,-500.0,0.00016438,2]
[352911172,1739416243642,-500.0,0.00016438,2]
[352911173,1739416243653,-1057.11,0.00016438,2]
[352911174,1739416243664,-500.0,0.00016438,2]
[352911175,1739416243674,-500.0,0.00016438,2]
[352911176,1739416243686,-525.37488602,0.00016438,2]
[352911177,1739416243695,-500.0,0.00016438,2]
[352911178,1739416243705,-869.76,0.00016438,2]
[352911179,1739416243716,-500.0,0.00016438,2]
[352911180,1739416243726,-500.0,0.00016438,2]
[352911181,1739416243736,-333.67256556,0.00016438,2]
[352911182,1739416243746,-500.0,0.00016438,2]
[352911183,1739416243757,-500.0,0.00016438,2]
[352911184,1739416243768,-500.0,0.00016438,2]
[352911185,1739416243778,-500.0,0.00016438,2]
[352911186,1739416243788,-500.0,0.00016438,2]
[352911187,1739416243799,-500.0,0.00016438,2]